Cogmind - Beta 16 @@@ ROGUE MODE // 2025.10.24 @ 00:44:44 Player: Demo Result: Destroyed by 8E-9IM(R) with Subdweller Machine Gun Performance ------------- Evolutions (0) 0 Regions Visited (2) 400 Robots Destroyed (73) 365 Value Destroyed (1450) 1450 Prototype IDs (0) 0 Alien Tech Used (0) 0 Bonus (116) 116 TOTAL SCORE: 2331 Bonus ------- High Alert Combat Kills 116 Cogmind --------- Core Integrity 0/250 Matter 250/300 Energy 250/250 System Corruption 2% Temperature Cool (0) Movement Treading (320) Ox2 Location -10/Subcaves Parts ------- > --- POWER (1) -------- Ion Engine > --- PROPULSION (2) --- Light Treads Wheel > --- UTILITY (2) ------ High-capacity Storage Unit Structural Scanner > --- WEAPON (2) ------- Rocket Launcher > --- INVENTORY (20) --- Subdweller Power Source Wheel Wheel Subdweller Monowheel Improved Heat Sink Medium Matter Pod (83) Medium Matter Pod (0) Large Matter Pod (150) Sensor Array Signal Interpreter Makeshift Light Armor Plating Makeshift Light Armor Plating Scrap Shield Tractor Beam Heavy EM Pulse Gun Grenade Launcher Rocket Launcher Rocket Launcher Subdweller Shrapnel Launcher Peak State ------------ > --- POWER ------------ Ion Engine > --- PROPULSION ------- Light Treads Wheel > --- UTILITY ---------- High-capacity Storage Unit Seismic Detector > --- WEAPON ----------- Rocket Launcher Rocket Launcher > --- INVENTORY -------- Ion Engine Light Treads Improved Heat Sink Medium Matter Pod Large Matter Pod Sensor Array Signal Interpreter Tractor Beam Heavy EM Pulse Gun Heavy EM Pulse Gun Heavy EM Pulse Gun Heavy EM Pulse Gun EM Shotgun EM Shotgun Grenade Launcher Grenade Launcher Grenade Launcher Grenade Launcher Rocket Launcher Rocket Launcher [Rating: 12] Favorites ----------- Power Ion Engine Engine Ion Engine Propulsion Light Treads Treads Light Treads Wheel Wheel Utility High-capacity Storage Unit Device Seismic Detector Storage High-capacity Storage Unit Protection Backup Plating I Weapon Rocket Launcher Energy Gun EM Shotgun Ballistic Gun Light Assault Rifle Launcher Rocket Launcher Build | -11 -10 -10 ------- Run | Yrd Mat Sub Slots Evolved . | . . . Power . | . . . Propulsion . | . . . Utility . | . . . Weapon . | . . . Parts Attached 28 | 6 16 6 Power 3 | . 2 1 Engine 3 | . 2 1 Core . | . . . Reactor . | . . . Propulsion 5 | 2 2 1 Treads 3 | 2 . 1 Leg . | . . . Wheel 2 | . 2 . Hover . | . . . Flight . | . . . Utility 7 | 2 3 2 Device 2 | . 1 1 Storage 3 | 2 1 . Processor . | . . . Hackware . | . . . Protection 2 | . 1 1 Artifact . | . . . Weapon 13 | 2 9 2 Energy Gun 7 | 1 5 1 Energy Cannon . | . . . Ballistic Gun 1 | 1 . . Ballistic Cannon . | . . . Launcher 5 | . 4 1 Special Weapon . | . . . Impact Weapon . | . . . Slashing Weapon . | . . . Piercing Weapon . | . . . Special Melee Weapon . | . . . Unidentified Prototypes . | . . . Corrupted Parts 1 | . . 1 System Corruption 1 | . . 1 Parts Lost 11 | . 5 6 Power 2 | . 1 1 Propulsion 2 | . 1 1 Utility 3 | . 2 1 Weapon 4 | . 1 3 Highest Loss Streak 5 | . 2 5 To Critical Strikes . | . . . Average Backups 15 | 3 14 18 Power . | 1 . . Propulsion 1 | . 1 2 Utility 6 | . 5 9 Weapon 6 | 1 7 5 Tool/Special . | . . . Unused Backups 24 | . 9 15 Power 2 | . 1 1 Propulsion 2 | . . 2 Utility 11 | . 1 10 Weapon 9 | . 7 2 Tool/Special . | . . . Average Slot Usage (%) 97 | . 96 99 Engine 13 | . 12 13 Treads 19 | . 21 16 Wheel 7 | . 6 11 Device 6 | . 6 7 Storage 14 | . 15 14 Protection 5 | . 5 6 Energy Gun 12 | . 16 4 Launcher 15 | . 10 23 Peak Build Rating 12 | 6 12 12 Average Rating 10 | 4 10 11 On Entrance 5 | . 6 11 Avg Prop Armor Cover (%) 11 | 38 11 9 Naked Turns . | . . . Heaviest Build 56 | 8 54 56 Greatest Support 40 | 40 40 40 Greatest Overweight (x) 5 | 1 5 5 Average Overweight (x) 3 | . 2 4 Largest Inventory Capacity 20 | 8 20 20 Average Capacity 17 | 7 16 20 Most Carried 20 | 5 20 20 Average Carried 15 | 3 14 19 Final Capacity 20 | 8 20 20 Final Carried 20 | 5 20 20 Class Distribution -------------------- 100% | Mutant Dominant Class ---------------- Mutant | -10/Materials Mutant | -10/Subcaves Resources | -11 -10 -10 ----------- Run | Yrd Mat Sub Matter Collected 2132 | 333 1112 687 Remotely . | . . . Salvage Created 1752 | 193 1367 192 Parts 133 | 14 100 19 Haulers Intercepted 2 | . 2 . Recyclers Shooed 2 | . 2 . Parts Field Recycled . | . . . Retrieved Matter . | . . . Parts Self-Destructed 15 | . . 15 Prevented . | . . . Parts Restored . | . . . Kills | -11 -10 -10 ------- Run | Yrd Mat Sub Combat Hostiles Destroyed 34 | . 25 9 Guns 7 | . 6 1 AOE 26 | . 18 8 Classes Destroyed 10 | 3 6 1 Worker 16 | 1 15 . Builder 6 | . 6 . Tunneler 5 | 3 2 . Hauler 2 | . 2 . Recycler 6 | 1 5 . Operator 1 | . 1 . Watcher 3 | . 3 . Swarmer 10 | . 6 4 Grunt 19 | . 19 . Subdweller 5 | . . 5 Best Kill Streak 7 | 4 7 4 Combat Bots Only 4 | . 4 4 Max Kills in Single Turn 4 | 1 4 2 Gunslinging . | . . . Exploded 3 | . 3 2 Melee . | . . . Uniques/NPCs Destroyed . | . . . Combat | -11 -10 -10 -------- Run | Yrd Mat Sub Hostile Shots Fired 93 | . 67 26 Missed 18 | . 11 7 Hits 75 | . 56 19 Projectile 75 | . 56 19 Critical Strikes 1 | . 1 . Damage Taken 1452 | . 910 542 Core 251 | . 88 163 Absorbed by Shields . | . . . Regen/Repaired (Parts) 57 | . 57 . Core Remaining (%) 100 | 100 . . Volleys Fired 166 | 23 107 36 Largest 2 | 2 2 2 Hottest 90 | 60 90 90 Shots Fired 258 | 38 161 59 Gun 161 | 38 114 9 Cannon . | . . . Launcher 97 | . 47 50 Special . | . . . Kinetic 23 | 23 . . Thermal 15 | 15 . . Explosive 97 | . 47 50 Electromagnetic 123 | . 114 9 Robot Hit Streak 15 | 5 15 11 Robot Miss Streak 5 | 2 5 1 Penetration Max . | . . . Secondary Targets . | . . . Shots Hit Robots 132 | 20 94 18 Core Hits 113 | 8 84 21 Critical Kills . | . . . Critical Parts Destroyed . | . . . Critical Strikes . | . . . Melee Attacks . | . . . Impact . | . . . Slashing . | . . . Piercing . | . . . Sneak Attacks . | . . . Combat Hostiles . | . . . Follow-up Attacks . | . . . Damage Inflicted 4958 | 186 3329 1443 Guns 1468 | 186 1177 105 Cannons . | . . . Explosions 3465 | . 2127 1338 Melee . | . . . Ramming 25 | . 25 . Kinetic 79 | 79 . . Thermal 262 | 107 155 . Explosive 3310 | . 1972 1338 Electromagnetic 1282 | . 1177 105 Impact . | . . . Slashing . | . . . Piercing . | . . . Highest Corruption 2 | . 1 2 Average Corruption 1 | . 1 1 Corruption Purged . | . . . Corruption Blocked . | . . . Effects 21 | . 3 18 Message Errors 5 | . . 5 Matter Fused 6 | . . 6 Heat Flow Errors 2 | . 1 1 Energy Discharges 3 | . 1 2 Parts Fused 1 | . . 1 Data Loss (minor) 2 | . 1 1 Misfires 1 | . . 1 Weapon Failures 1 | . . 1 Overload Shots . | . . . Overflow Damage 80 | . 46 34 Projectiles . | . . . Explosions 80 | . 46 34 Melee . | . . . Knockbacks . | . . . Impact . | . . . Kinetic . | . . . Secondary . | . . . Self-Inflicted Damage 458 | . 280 178 Shots 14 | . 7 7 Rammed 4 | . 4 . Targets Rammed 4 | . 4 . Kicked . | . . . Crushed . | . . . Highest Temperature 265 | 20 265 216 Average Temperature 69 | 8 75 116 Received Heat Transfer 315 | . 315 . Siege Activations . | . . . Martial Activations . | . . . Shielding Activations . | . . . Robots Disrupted . | . . . Combat Hostiles . | . . . Robots Corrupted 1 | . 1 . Combat Hostiles 1 | . 1 . Parts Fried 5 | . 5 . Impact Corruptions . | . . . Robots Melted . | . . . Combat Hostiles . | . . . Parts Melted . | . . . Heat Transferred 350 | 250 100 . Parts Sabotaged . | . . . Parts Stolen . | . . . Parts Stripped . | . . . Power Chain Reactions 4 | . 4 . Alert | -11 -10 -10 ------- Run | Yrd Mat Sub Maximum Alert Level 3 | . 3 . Low Security (%) 32 | 100 27 . Level 1 29 | . 32 . Level 2 16 | . 17 . Level 3 21 | . 23 . Level 4 . | . . . Level 5 . | . . . High Security . | . . . Max Security . | . . . Peak Influence 875 | 10 875 . Initial . | . . . Average 367 | 1 394 . Influence Increases 1612 | 25 1437 150 Destroy 0b10 Robot/C 580 | . 500 80 Destroy 0b10 Robot/NC 195 | 25 170 . Destroy Leader 160 | . 150 10 Successful Hack 9 | . 9 . Select Force Hacks 180 | . 180 . Disable Machine 150 | . 150 . Destroy Structure 278 | . 278 . Lose Combat Pursuer 60 | . . 60 Influence Decreases 1572 | 25 574 973 Entered New Map 415 | . . 415 Time Decay 1047 | 25 524 498 Lost Part 110 | . 50 60 Squads Dispatched 9 | . 9 . Investigation 8 | . 8 . Extermination . | . . . Reinforcement 1 | . 1 . Assault . | . . . Garrison . | . . . Intercept . | . . . Searches Triggered . | . . . Construction Impeded . | . . . Haulers Reinforced . | . . . Active Scanning Responses . | . . . Cargo Convoy Interrupts . | . . . Stealth | -11 -10 -10 --------- Run | Yrd Mat Sub Distress Signals 3 | . 3 . Communications Jammed . | . . . Distress Signals . | . . . Times Spotted 41 | . 29 12 Peak Tracking Total 6 | . 6 3 Tactical Retreats 1 | . . 1 Traps | -11 -10 -10 ------- Run | Yrd Mat Sub Traps Triggered . | . . . Indirectly . | . . . Trap Hack Attempts . | . . . Triggered . | . . . Disarmed . | . . . Reprogrammed . | . . . Reused . | . . . Traps Extracted . | . . . Installed . | . . . Triggered . | . . . Machines | -11 -10 -10 ---------- Run | Yrd Mat Sub Machines Disabled 12 | . 10 2 Max in Single Turn 1 | . 1 1 Machines Repaired . | . . . Machines Dismantled . | . . . Machines Sabotaged 3 | . 3 . Overloaded Fab Kills . | . . . Hacking | -11 -10 -10 --------- Run | Yrd Mat Sub Machines Accessed 9 | . 9 . Terminals 7 | . 7 . Fabricators . | . . . Repair Stations 1 | . 1 . Recycling Units 1 | . 1 . Scanalyzers . | . . . Garrison Access . | . . . Total Hacks 22 | . 22 . Successful 11 | . 11 . Failed 11 | . 11 . Catastrophic 3 | . 3 . Database Lockouts . | . . . Manual 16 | . 16 . Terminals 11 | . 11 . Fabricators . | . . . Repair Stations 7 | . 7 . Recycling Units 4 | . 4 . Scanalyzers . | . . . Garrison Access . | . . . Terminal Hacks . | . . . Fabricator Hacks . | . . . Repair Station Hacks 3 | . 3 . Scan Component 1 | . 1 . Repair 1 | . 1 . Refit 1 | . 1 . Recycling Unit Hacks . | . . . Scanalyzer . | . . . Garrison Access Hacks . | . . . Unauthorized Hacks 8 | . 8 . Terminals 6 | . 6 . Sabotage 6 | . 6 . Fabricators . | . . . Repair Stations 1 | . 1 . Patch 1 | . 1 . Recycling Units 1 | . 1 . Tunnel 1 | . 1 . Scanalyzers . | . . . Garrison Access . | . . . Data Cores Recovered . | . . . Used . | . . . Hacking Detections 4 | . 4 . Full Trace Events 1 | . 1 . Feedback Events . | . . . Feedback Blocked . | . . . Robot Schematics Acquired . | . . . Robots Built . | . . . Authchips . | . . . Time . | . . . Total Robot Build Rating . | . . . Part Schematics Acquired . | . . . Parts Built . | . . . Authchips . | . . . Time . | . . . Total Part Build Rating . | . . . Part Studies Acquired . | . . . Parts Repaired 1 | . 1 . Time 26 | . 26 . Parts Recycled . | . . . Recycled Matter . | . . . Retrieved Matter . | . . . Retrieved Components . | . . . Parts Scanalyzed . | . . . Part Schematics Acquired . | . . . Parts Damaged . | . . . Bothacking | -11 -10 -10 ------------ Run | Yrd Mat Sub Used RIF Installer . | . . . Robots Hacked . | . . . Non-combat . | . . . Combat . | . . . Robot Hacks Applied . | . . . Relay Couplers Released . | . . . Fabnet Peak Effective % . | . . . Robots Rewired . | . . . Allies Hacked . | . . . Hacks Repelled . | . . . Allies | -11 -10 -10 -------- Run | Yrd Mat Sub Total Allies . | . . . Largest Group . | . . . Highest-Rated Group . | . . . Highest-Rated Ally . | . . . Total Orders . | . . . Ally Attacks . | . . . Total Damage . | . . . Kills . | . . . Allies Corrupted . | . . . Allies Melted . | . . . Intel | -11 -10 -10 ------- Run | Yrd Mat Sub Active Infowar (turns) 1867 | . 1143 724 Structural 470 | . . 470 Seismic 1397 | . 1143 254 Robot Analysis Total . | . . . Derelict Logs Recovered . | . . . Drone Launches . | . . . Drone Recoveries . | . . . Exploration | -11 -10 -10 ------------- Run | Yrd Mat Sub Turns Passed 4047 | 189 2529 1329 Spaces Moved 2051 | 105 1230 716 Core 65 | 65 . . Treads 759 | 40 621 98 Legs . | . . . Wheels 1227 | . 609 618 Hover . | . . . Flight . | . . . Fastest Speed 50 | 50 140 155 Average Speed 167 | 112 173 166 Slowest Speed 320 | 160 320 320 Overloaded Moves . | . . . Propulsion Burnouts . | . . . Robots Hopped . | . . . Potential Cave-ins 3 | . . 3 Cave-ins Triggered . | . . . Exploration Rate (%) 49 | 3 94 50 Regions Visited 2 Branch Regions 1 Pre-discovered Areas 2 | . 1 1 Known Exits Taken . | . . . Unknown Exits Taken 2 | 1 1 . Scrap Searched 9 | . . 9 Spaces Dug 55 | . 35 20 Terrain Destroyed 539 | . 278 261 Melee . | . . . Projectile . | . . . AOE 539 | . 278 261 Terrain Rammed . | . . . Walls Destroyed . | . . . Machines Disabled . | . . . Actions | -11 -10 -10 --------- Run | Yrd Mat Sub Total 2400 | 141 1467 792 Wait 74 | . 58 16 Move 2049 | 104 1229 716 Hop . | . . . Pick Up 47 | 8 30 9 Fast Attach 11 | 3 8 . Attach 13 | 3 3 7 Detach . | . . . Swap 13 | . 10 3 Drop 23 | . 18 5 Fire 166 | 23 107 36 Melee . | . . . Ram 1 | . 1 . Kick . | . . . Crush 3 | . 3 . Escape Stasis . | . . . Rewire . | . . . Trap . | . . . Miscellaneous . | . . . Route ------- -11/Scrapyard -10/Materials (discovered 6 exits: [*Mat x3] / [*Min x2] / [*Sub]) -10/Subcaves History --------- Turn | Location | Event 4 | -11/Scrapyard | Discovered new exit (range 15) 190 | -11/Scrapyard | Entered Materials 305 | -10/Materials | Build established: Mutant 690 | -10/Materials | Repaired Lgt. Treads 709 | -10/Materials | Discovered new exit (range 10) 795 | -10/Materials | Discovered new exit (range 10) 1022 | -10/Materials | Discovered new exit (range 14) 1387 | -10/Materials | Discovered new exit (range 16) 1981 | -10/Materials | Discovered new exit (range 15) 2072 | -10/Materials | Discovered new exit (range 9) 2719 | -10/Materials | Entered Subcaves 2961 | -10/Subcaves | Disturbed a concealed Subdweller 2976 | -10/Subcaves | Core integrity fell below 50% 3005 | -10/Subcaves | Lost 5 parts (1p1n1u2w) 3379 | -10/Subcaves | A swath of the cavern ceiling suddenly collapsed 3383 | -10/Subcaves | Ambushed by Subdweller buried in earth 3386 | -10/Subcaves | Ambushed by Subdweller buried in earth 3400 | -10/Subcaves | Core integrity fell below 20% 3415 | -10/Subcaves | Ambushed by Subdweller buried in earth 3670 | -10/Subcaves | Learned location of Zion (-7) 3670 | -10/Subcaves | Met a Zionite searching for "candidates" 3952 | -10/Subcaves | A swath of the cavern ceiling suddenly collapsed 4044 | -10/Subcaves | Disturbed a concealed Subdweller 4048 | -10/Subcaves | Destroyed by 8E-9IM(R) with Subdweller Machine Gun Last Messages --------------- 03623_ Acquired Sub. Monowheel. 03626_ VFPB|XKL&&0WFDP& BACMPJB98XQFNITLWJMFN 03637_ OB-RO5(z): "She is not going to be happy we haven't found any suitable candidates yet." 03670_ OB-RO5(z): "Hey you! It's really dangerous down here, I feel that you could die at any moment. For your health and safety might I suggest a trip to Zion?" World map updated: -7/Zion. 03693_ System corrupted: Heat flow error (+256). 03738_ ID 3WBJBKHYO2ICW:W4XRVBUF 03822_ System corrupted: Component data lost. 03882_ System corrupted: Energy discharge (-62). 03952_ Spk. Treads crushed. A swath of the cavern ceiling suddenly collapses. 04027_ System corrupted: Energy discharge (-82). 04044_ 8E-9IM(R) angrily emerges from the Twisted Machinery. 04046_ Rocket Launcher destroyed. Map ----- +----------------------------------------------------+ | #??# ##????# ?????????????????????????? | | #??## ##????? ?????????????????????????? | | #???## ###????? ? ?????????###########??????? | | #????#### #####??????????????##"" """###????? | | #???????## #?????????????##" "" ]""""#????? | | ##??????## #?????????????#"^ #### []%"##???? | | #####?## #####???????### #####"] [" #???? | | ## #?# ### # ##??????### #####" % #???? | | ### ### ##?????# # ###""" ##???? | | ## ## ##?#### #########????? | | ## ### ###### # ##########????? | | # ### #### # |"#????? | | # #### ## #### ## # % ###??? | | ### ######?## ## #??# # " ##"["## ##?? | | ??#####??????## # ##?# ## #" "###### ### | | ?????????????## ## #### ## < ### ## | | ?????????????## #### | | ?????????????### | | ?????????????### # # | | ?????????????## ###### #### | | ?????????????## ###??# #??? | | ?????????????## ## ## ####??## ##?? | | ?????????????### #### #########????# #?? | | ?????????????########## #########????## ##?? | | ??????????????????##### ####??????????# "#?# | | ?????????????????##### @ ##???????????# & ### | | ?????????????????### ###???????????##=%### | | ?????????????????## ##???????????# ## | | ??????????####???### ###???????????# | | ??????????####?##### ###???????????# | | ??????????## ### R ##???????????## # | | ?????? $$ ##????????????#### # | | ??????????? #### # # ; $ $< ###??????????????## | | ???????????##########; << ###??????????????# " | | ??????????????#######;; ## ##???????????????## " | | ??????????????????##;##### ###????????????????## | | ??????????????????##;#"## #####?????????????????## | | ??????????????????##"#"# #####???????????????????# | | ????????????????####"## ####????????????????????## | | ????????????????#######""##?????????????????????# | | ????????????????###"###"####????????????????????#" | | ????????????????####"""#"####???????????????????## | | ?????????????????####"### ###??????????????????## | | ?????????????????# ##"""" "###????????????????## | | ???????????????????###""" "###????????????????# | | ???????????????????####"" # ##????????????????## | | ????????????????????##########?????????????????## | | ?????????????????????###]"####?????????????????# | | ?????????????????????### ##??????????????????## | | ?????????????????????## ###???????????????????## | +----------------------------------------------------+ Best States ------------- Heat Dissipation 25 Energy Generation 10 Energy Capacity 250 Matter Stores 350 Matter Capacity 350 Sight Range 16 Terrain Scan Density 10 Armor Coverage 150 Evasion (%) 50 Recoil Reduction 2 Item Schematics ----------------- None Robot Schematics ------------------ None Fabricated ------------ Nothing Repaired ---------- Lgt. Treads | 66% | -10/Materials Studied --------- None Alien Tech Used ----------------- None Achievements -------------- A Problem For Future Me DATA ERROR: Steam Global Achievement% Do Not Disturb Fitting Room For Emergencies Only Organ Harvest Overwhelming Physics Hates This One Trick There's More Where That Came From Tune-up Challenges ------------ None Game ------ Seed AmuletWaveCanceller Manual? 0 Play Time 00:21:45 Cumulative 327.0 hours Start 2025.10.24 @ 00:25:33 End 2025.10.24 @ 00:44:44 Sessions 1 Manual Loads 0 Difficulty Rogue Special Mode None Game No. 285 Rogue 285 Adventurer 0 Explorer 0 Win Type - Total 2 Types 1/1/0/0/0/0/0/0/0/0 Lore% 78 Gallery% 79 Achievement% 41 Wizard Run 0 Options --------- Layout 1 ASCII 0 Keyboard 0 Movement Numpad Keybinds 0 Fullscreen 1 Font 24/Smallcaps Map View 50x35 Zoom Use 0% Tactical HUD 1 Map Filters NONE Filters NONE Steam 1 RUN: 6813c245-474d-4837-bd20-ed916e685408